fUSD/lending_fUSD_20240515
["ID","MTS","AMOUNT","RATE_DAILY","PERIOD"]
[327070617,1715778640532,-500.0,0.0001178,2]
[327070618,1715778640541,-500.0,0.0001178,2]
[327070619,1715778640551,-500.0,0.0001178,2]
[327070620,1715778640561,-500.0,0.0001178,2]
[327070621,1715778640570,-500.0,0.0001178,2]
[327070622,1715778640582,-500.0,0.0001178,2]
[327070623,1715778640591,-530.92,0.0001178,2]
[327070624,1715778640601,-1242.65,0.0001178,2]
[327070625,1715778640611,-500.0,0.0001178,2]
[327070626,1715778640622,-500.0,0.0001178,2]
[327070627,1715778640633,-500.0,0.0001178,2]
[327070628,1715778640642,-1463.34,0.0001178,2]
[327070629,1715778640652,-278.72,0.0001178,2]
[327070630,1715778640662,-500.0,0.0001178,2]
[327070631,1715778640672,-1046.26,0.0001178,2]
[327070632,1715778640682,-500.0,0.0001178,2]
[327070633,1715778640692,-500.0,0.0001178,2]
[327070634,1715778640702,-500.0,0.0001178,2]
[327070635,1715778640711,-500.0,0.0001178,2]
[327070636,1715778640722,-500.0,0.0001178,2]
[327070637,1715778640731,-500.0,0.0001178,2]
[327070638,1715778640741,-500.0,0.0001178,2]
[327070639,1715778640752,-500.0,0.0001178,2]
[327070640,1715778640762,-500.0,0.0001178,2]
[327070641,1715778640771,-500.0,0.0001178,2]
[327070642,1715778640781,-500.0,0.0001178,2]
[327070643,1715778640792,-208.74,0.0001178,2]
[327070644,1715778640804,-500.0,0.0001178,2]
[327070645,1715778640814,-500.0,0.0001178,2]
[327070646,1715778640825,-500.0,0.0001178,2]
[327070647,1715778640837,-500.0,0.0001178,2]
[327070648,1715778640848,-500.0,0.0001178,2]
[327070649,1715778640858,-500.0,0.0001178,2]
[327070650,1715778640868,-500.0,0.0001178,2]
[327070651,1715778640877,-2315.79,0.0001178,2]
[327070652,1715778640887,-500.0,0.0001178,2]
[327070653,1715778640896,-500.0,0.0001178,2]
[327070654,1715778640906,-500.0,0.0001178,2]
[327070655,1715778640916,-500.0,0.0001178,2]
[327070656,1715778640926,-380.75,0.0001178,2]
[327070657,1715778640936,-497.57,0.0001178,2]
[327070658,1715778640945,-873.88,0.0001178,2]
[327070659,1715778640955,-500.0,0.0001178,2]
[327070660,1715778640965,-500.0,0.0001178,2]
[327070661,1715778640974,-500.0,0.0001178,2]
[327070662,1715778640984,-500.0,0.0001178,2]
[327070663,1715778640993,-500.0,0.0001178,2]
[327070664,1715778641003,-488.79,0.0001178,2]
[327070665,1715778641013,-500.0,0.0001178,2]
[327070666,1715778641023,-344.98750995,0.0001178,2]
[327070667,1715778641033,-500.0,0.0001178,2]
[327070668,1715778641042,-500.0,0.0001178,2]
[327070669,1715778641051,-500.0,0.0001178,2]
[327070670,1715778641061,-500.0,0.0001178,2]
[327070671,1715778641070,-500.0,0.0001178,2]
[327070672,1715778641080,-500.0,0.0001178,2]
[327070673,1715778641091,-606.18,0.0001178,2]
[327070674,1715778641101,-500.0,0.0001178,2]
[327070675,1715778641110,-620.72,0.0001178,2]
[327070676,1715778641119,-500.0,0.0001178,2]
[327070677,1715778641129,-500.0,0.0001178,2]
[327070678,1715778641139,-502.66,0.0001178,2]
[327070679,1715778641147,-500.0,0.0001178,2]
[327070680,1715778641158,-500.0,0.0001178,2]
[327070681,1715778641167,-500.0,0.0001178,2]
[327070682,1715778641177,-921.5,0.0001178,2]
[327070683,1715778641186,-561.48,0.0001178,2]
[327070684,1715778641196,-500.0,0.0001178,2]
[327070685,1715778641205,-500.0,0.0001178,2]
[327070686,1715778641215,-500.0,0.0001178,2]
[327070687,1715778641224,-290.33152089,0.0001178,2]
[327070688,1715778641240,-209.66847911,0.0001178,2]
[327070689,1715778641249,-149.28530449,0.0001178,2]
[327070690,1715778641261,-350.71469551,0.0001178,2]
[327070691,1715778641271,-500.0,0.0001178,2]
[327070692,1715778641281,-500.0,0.0001178,2]
[327070693,1715778641291,-349.55,0.0001178,2]
[327070694,1715778641301,-500.0,0.0001178,2]
[327070695,1715778641310,-500.0,0.0001178,2]
[327070696,1715778641320,-500.0,0.0001178,2]
[327070697,1715778641329,-639.11711918,0.0001178,2]
[327070698,1715778641344,-500.0,0.0001178,2]
[327070699,1715778641354,-500.0,0.0001178,2]
[327070700,1715778641363,-1839.7,0.0001178,2]
[327070701,1715778641373,-500.0,0.0001178,2]
[327070702,1715778641383,-831.17,0.0001178,2]
[327070703,1715778641392,-1192.95,0.0001178,2]
[327070704,1715778641402,-261.17236176,0.0001178,2]
[327070705,1715778641412,-500.0,0.0001178,2]
[327070706,1715778641422,-500.0,0.0001178,2]
[327070707,1715778641432,-727.35,0.0001178,2]
[327070708,1715778641445,-500.0,0.0001178,2]
[327070709,1715778641455,-1558.13,0.0001178,2]
[327070710,1715778641464,-500.0,0.0001178,2]
[327070711,1715778641474,-500.0,0.0001178,2]
[327070712,1715778641484,-500.0,0.0001178,2]
[327070713,1715778641495,-500.0,0.0001178,2]
[327070714,1715778641504,-500.0,0.0001178,2]
[327070715,1715778641514,-500.0,0.0001178,2]
[327070716,1715778641524,-500.0,0.0001178,2]
[327070717,1715778641534,-500.0,0.0001178,2]
[327070718,1715778641544,-500.0,0.0001178,2]
[327070719,1715778641554,-500.0,0.0001178,2]
[327070720,1715778641563,-500.0,0.0001178,2]
[327070721,1715778641573,-500.0,0.0001178,2]
[327070722,1715778641582,-190.28879711,0.0001178,2]
[327070723,1715778641595,-184.88589556,0.0001178,2]
[327070724,1715778641604,-1001.98,0.0001178,2]
[327070725,1715778641614,-500.0,0.0001178,2]
[327070726,1715778641624,-500.0,0.0001178,2]
[327070727,1715778641633,-187.16,0.0001178,2]
[327070728,1715778641643,-500.0,0.0001178,2]
[327070729,1715778641652,-200.0,0.00011788,2]
[327070730,1715778641662,-5299.31054026,0.00011791,2]
[327070731,1715778641692,-517.9058607,0.00011791,2]
[327070732,1715778641734,-500.6964493,0.00011791,2]
[327070733,1715778641746,-1335.41179702,0.00011791,2]
[327070734,1715778641756,-500.0,0.00011791,2]
[327070735,1715778641766,-746.59,0.00011791,2]
[327070736,1715778641776,-500.0,0.00011791,2]
[327070737,1715778641785,-500.0,0.00011791,2]
[327070738,1715778641795,-500.0,0.00011791,2]
[327070739,1715778641804,-673.01,0.00011791,2]
[327070740,1715778641814,-500.0,0.00011791,2]
[327070741,1715778641823,-500.0,0.00011791,2]
[327070742,1715778641833,-500.0,0.00011791,2]
[327070743,1715778641846,-500.0,0.00011791,2]
[327070744,1715778641857,-500.0,0.00011791,2]
[327070745,1715778641868,-500.0,0.00011791,2]
[327070746,1715778641877,-500.0,0.00011791,2]
[327070747,1715778641887,-500.0,0.00011791,2]
[327070748,1715778641896,-500.0,0.00011792,2]
[327070749,1715778641906,-843.19,0.00011792,2]
[327070750,1715778641915,-500.0,0.00011792,2]
[327070751,1715778641925,-500.0,0.00011792,2]
[327070752,1715778641936,-500.0,0.00011792,2]
[327070753,1715778641946,-200.0,0.00011793,2]
[327070754,1715778641956,-1000.0,0.00011793,2]
[327070755,1715778641967,-500.0,0.00011793,2]
[327070756,1715778641976,-768.62,0.00011793,2]
[327070757,1715778641986,-532.63,0.00011793,2]
[327070758,1715778641996,-500.0,0.00011793,2]
[327070759,1715778642005,-500.0,0.00011793,2]
[327070760,1715778642015,-601.93256708,0.00011793,2]
[327070761,1715778642025,-180.50131205,0.00011793,2]
[327070762,1715778642035,-411.34929263,0.00011793,2]
[327070763,1715778642044,-500.0,0.00011793,2]
[327070764,1715778642054,-500.0,0.00011793,2]
[327070765,1715778642063,-500.0,0.00011793,2]
[327070767,1715778642073,-500.0,0.00011793,2]
[327070769,1715778642083,-500.0,0.00011793,2]
[327070771,1715778642097,-500.0,0.00011793,2]
[327070773,1715778642106,-400.0,0.00011799,2]
[327070775,1715778642116,-7653.32464728,0.00011802,2]
[327070777,1715778642125,-800.0,0.00011808,2]
[327070779,1715778642134,-150.0,0.00011811,2]
[327070781,1715778642144,-7653.32464728,0.00011813,2]
[327070783,1715778642154,-7653.32464728,0.00011824,2]
[327070785,1715778642163,-150.0,0.00011829,2]
[327070787,1715778642173,-502.66145338,0.00011834,2]
[327070789,1715778642183,-500.0,0.00011834,2]
[327070791,1715778642192,-7653.32464728,0.00011835,2]
[327070793,1715778642201,-7653.32464728,0.00011845,2]
[327070811,1715778642372,-300.0,0.00011852,2]
[327070813,1715778642382,-300.0,0.00011854,2]
[327070815,1715778642391,-7653.32464728,0.00011856,2]
[327070817,1715778642402,-153.47,0.00011861,2]
[327070819,1715778642411,-156.03,0.00011863,2]
[327070821,1715778642420,-300.0,0.00011864,2]
[327070823,1715778642431,-649.52094186,0.00011866,2]
[327070825,1715778642441,-843.19,0.00011866,2]
[327070827,1715778642452,-500.0,0.00011866,2]
[327070829,1715778642462,-500.0,0.00011866,2]
[327070831,1715778642472,-500.0,0.00011866,2]
[327070833,1715778642483,-205.41424698,0.00011867,2]
[327070835,1715778642493,-768.62,0.00011867,2]
[327070837,1715778642503,-532.63,0.00011867,2]
[327070839,1715778642513,-500.0,0.00011867,2]
[327070841,1715778642524,-500.0,0.00011867,2]
[327070843,1715778642534,-500.0,0.00011867,2]
[327070845,1715778642543,-500.0,0.00011867,2]
[327070847,1715778642554,-514.52,0.00011867,2]
[327070849,1715778642565,-500.0,0.00011867,2]
[327070851,1715778642575,-500.0,0.00011867,2]
[327070852,1715778642585,-500.0,0.00011867,2]
[327070854,1715778642606,-4309.23924051,0.00011867,2]
[327070857,1715778642834,-450.0,0.0001168,2]
[327070858,1715778642861,-50.0,0.0001168,2]
[327070859,1715778642870,-2703.78948056,0.00011867,2]
[327070860,1715778642896,-640.29592621,0.00011867,2]
[327070861,1715778642906,-385.74488212,0.00011868,2]
[327070862,1715778642917,-114.25511788,0.00011868,2]
[327070863,1715778642927,-738.5322892,0.00011871,2]
[327070874,1715778643407,-7001.19198846,0.0001168,2]
[327070879,1715778643564,-1365.42148699,0.0001168,2]
[327070880,1715778643577,-1396.0399734,0.0001168,2]
[327070881,1715778643746,-1598.03354687,0.0001168,2]
[327070882,1715778643758,-2971.4261541,0.0001168,2]
[327070883,1715778643769,-723.49542968,0.0001168,2]
[327070884,1715778643782,-3642.79917391,0.0001168,2]
[327070885,1715778643795,-9951.688092,0.0001168,2]
[327070886,1715778644053,-39410.18935459,0.0001168,2]
[327070888,1715778644063,-30.0877108,0.00011871,2]
[327070890,1715778644073,-532.63,0.00011871,2]
[327070891,1715778644083,-274.28824224,0.00011871,2]
[327070892,1715778644099,-173.31,0.00011871,2]
[327070893,1715778644108,-621.54581092,0.00011871,2]
[327070894,1715778644117,-500.0,0.00011871,2]
[327070895,1715778644127,-500.0,0.00011871,2]
[327070896,1715778644136,-500.0,0.00011871,2]
[327070897,1715778644145,-181.52329871,0.00011871,2]
[327070898,1715778644155,-236.59,0.00011871,2]
[327070899,1715778644164,-500.0,0.00011871,2]
[327070900,1715778644173,-500.0,0.00011871,2]
[327070901,1715778644182,-500.0,0.00011871,2]
[327070902,1715778644191,-500.0,0.00011871,2]
[327070903,1715778644201,-500.0,0.00011871,2]
[327070904,1715778644211,-500.0,0.00011871,2]
[327070905,1715778644220,-500.0,0.00011871,2]
[327070906,1715778644230,-202.14,0.00011871,2]
[327070907,1715778644240,-500.0,0.00011871,2]
[327070908,1715778644249,-500.0,0.00011871,2]
[327070909,1715778644259,-500.0,0.00011871,2]
[327070910,1715778644268,-500.0,0.00011871,2]
[327070911,1715778644278,-500.0,0.00011871,2]
[327070912,1715778644287,-500.0,0.00011871,2]
[327070913,1715778644296,-500.0,0.00011871,2]
[327070914,1715778644306,-500.0,0.00011871,2]
[327070915,1715778644316,-500.0,0.00011871,2]
[327070916,1715778644325,-150.0,0.00011871,2]
[327070917,1715778644335,-500.0,0.00011871,2]
[327070918,1715778644348,-778.5,0.00011871,2]
[327070919,1715778644357,-500.0,0.00011871,2]
[327070920,1715778644367,-500.0,0.00011871,2]
[327070921,1715778644376,-843.19,0.00011871,2]
[327070922,1715778644386,-500.0,0.00011871,2]
[327070923,1715778644395,-500.0,0.00011871,2]
[327070924,1715778644405,-500.0,0.00011871,2]
[327070925,1715778644415,-500.0,0.00011871,2]
[327070926,1715778644425,-500.0,0.00011871,2]
[327070927,1715778644439,-595.66,0.00011871,2]
[327070928,1715778644448,-500.0,0.00011871,2]
[327070929,1715778644457,-500.0,0.00011871,2]
[327070930,1715778644468,-500.0,0.00011871,2]
[327070931,1715778644478,-500.0,0.00011871,2]
[327070932,1715778644488,-500.0,0.00011871,2]
[327070933,1715778644498,-500.0,0.00011871,2]
[327070934,1715778644508,-500.0,0.00011871,2]
[327070935,1715778644519,-1242.65,0.00011871,2]
[327070936,1715778644530,-500.0,0.00011871,2]
[327070937,1715778644540,-1463.34,0.00011871,2]
[327070938,1715778644550,-500.0,0.00011871,2]
[327070939,1715778644559,-1046.26,0.00011871,2]
[327070940,1715778644569,-500.0,0.00011871,2]
[327070941,1715778644579,-500.0,0.00011871,2]
[327070942,1715778644590,-500.0,0.00011871,2]
[327070943,1715778644600,-500.0,0.00011871,2]
[327070944,1715778644610,-500.0,0.00011871,2]
[327070945,1715778644619,-642.98,0.00011871,2]
[327070946,1715778644629,-500.0,0.00011871,2]
[327070947,1715778644639,-293.11,0.00011871,2]
[327070948,1715778644648,-592.6,0.00011871,2]
[327070949,1715778644658,-590.42303454,0.00011871,2]
[327070950,1715778644667,-500.0,0.00011871,2]
[327070951,1715778644676,-500.0,0.00011871,2]
[327070952,1715778644686,-500.0,0.00011871,2]
[327070953,1715778644695,-500.0,0.00011871,2]
[327070954,1715778644705,-500.0,0.00011871,2]
[327070955,1715778644714,-2315.79,0.00011871,2]
[327070956,1715778644724,-500.0,0.00011871,2]
[327070957,1715778644734,-500.0,0.00011871,2]
[327070958,1715778644743,-500.0,0.00011871,2]
[327070959,1715778644753,-873.88,0.00011871,2]
[327070960,1715778644763,-500.0,0.00011871,2]
[327070961,1715778644772,-500.0,0.00011871,2]
[327070962,1715778644782,-479.05646181,0.00011871,2]
[327070963,1715778644792,-500.0,0.00011871,2]
[327070964,1715778644802,-390.04,0.00011871,2]
[327070965,1715778644812,-500.0,0.00011871,2]
[327070966,1715778644822,-500.0,0.00011871,2]
[327070967,1715778644831,-500.0,0.00011871,2]
[327070968,1715778644843,-500.0,0.00011871,2]
[327070969,1715778644853,-467.23,0.00011871,2]
[327070970,1715778644862,-500.0,0.00011871,2]
[327070971,1715778644870,-606.18,0.00011871,2]
[327070972,1715778644879,-500.0,0.00011871,2]
[327070973,1715778644889,-620.72,0.00011871,2]
[327070974,1715778644898,-500.0,0.00011871,2]
[327070975,1715778644907,-500.0,0.00011871,2]
[327070976,1715778644917,-502.66,0.00011871,2]
[327070977,1715778644926,-500.0,0.00011871,2]
[327070978,1715778644936,-500.0,0.00011871,2]
[327070979,1715778644945,-332.97,0.00011871,2]
[327070980,1715778644954,-921.5,0.00011871,2]
[327070981,1715778644964,-561.48,0.00011871,2]
[327070982,1715778644973,-596.88172406,0.00011871,2]
[327070983,1715778644982,-500.0,0.00011871,2]
[327070984,1715778644992,-500.0,0.00011871,2]
[327070985,1715778645001,-500.0,0.00011871,2]
[327070986,1715778645011,-500.0,0.00011871,2]
[327070987,1715778645021,-500.0,0.00011871,2]
[327070988,1715778645031,-500.0,0.00011871,2]
[327070989,1715778645041,-500.0,0.00011871,2]
[327070990,1715778645050,-500.0,0.00011871,2]
[327070991,1715778645060,-500.0,0.00011871,2]
[327070992,1715778645069,-500.0,0.00011871,2]
[327070993,1715778645079,-500.0,0.00011871,2]
[327070994,1715778645090,-1839.7,0.00011871,2]
[327070995,1715778645099,-500.0,0.00011871,2]
[327070996,1715778645109,-1192.95,0.00011871,2]
[327070997,1715778645118,-831.17,0.00011871,2]
[327070998,1715778645127,-500.0,0.00011871,2]
[327070999,1715778645137,-500.0,0.00011871,2]
[327071000,1715778645147,-727.35,0.00011871,2]
[327071001,1715778645156,-500.0,0.00011871,2]
[327071002,1715778645165,-1558.13,0.00011871,2]
[327071003,1715778645174,-500.0,0.00011871,2]
[327071004,1715778645184,-364.65,0.00011871,2]
[327071005,1715778645193,-500.0,0.00011871,2]
[327071006,1715778645202,-182.67,0.00011871,2]
[327071007,1715778645212,-500.0,0.00011871,2]
[327071008,1715778645221,-207.79,0.00011871,2]
[327071009,1715778645230,-500.0,0.00011871,2]
[327071010,1715778645239,-500.0,0.00011871,2]
[327071011,1715778645249,-500.0,0.00011871,2]
[327071012,1715778645258,-1001.98,0.00011871,2]
[327071013,1715778645267,-500.0,0.00011871,2]
[327071014,1715778645276,-500.0,0.00011871,2]
[327071015,1715778645286,-500.0,0.00011871,2]
[327071016,1715778645295,-2000.0,0.00011872,2]
[327071017,1715778645304,-200.0,0.00011872,2]
[327071018,1715778645313,-22894.7884303,0.00011872,2]
[327071019,1715778645323,-517.8172237,0.00011872,2]
[327071020,1715778645332,-7108.6186617,0.00011872,2]
[327071021,1715778645344,-2506.9138893,0.00011872,2]
[327071022,1715778645353,-623.5575602,0.00011872,2]
[327071023,1715778645363,-42447.4674928,0.00011872,2]
[327071024,1715778645372,-3000.0,0.00011872,2]
[327071025,1715778645381,-428.03983769,0.00011872,2]
[327071026,1715778645389,-4212.63801329,0.00011876,2]
[327071027,1715778645400,-276.976178,0.00011876,2]
[327071028,1715778645410,-178.79855753,0.00011876,2]
[327071029,1715778645419,-150.0,0.00011876,2]
[327071030,1715778645429,-235.00825666,0.00011877,2]
[327071031,1715778645439,-274.30175889,0.00011877,2]
[327071032,1715778645452,-155.0,0.00011877,2]
[327071033,1715778645462,-167.20631521,0.00011877,2]
[327071034,1715778645472,-160.97421239,0.00011877,2]
[327071035,1715778645481,-9179.22619712,0.00011877,2]
[327071036,1715778645492,-427.88160091,0.00011877,2]
[327071037,1715778645502,-267.28951142,0.00011877,2]
[327071038,1715778645512,-1242.23151248,0.00011877,2]
[327071039,1715778645524,-446.76445937,0.00011877,2]
[327071040,1715778645534,-768.62,0.00011877,2]
[327071041,1715778645544,-532.63,0.00011877,2]
[327071042,1715778645553,-500.0,0.00011877,2]
[327071043,1715778645563,-500.0,0.00011877,2]
[327071044,1715778645573,-500.0,0.00011877,2]
[327071045,1715778645582,-500.0,0.00011877,2]
[327071046,1715778645594,-500.0,0.00011877,2]
[327071047,1715778645603,-330.9,0.00011877,2]
[327071048,1715778645614,-500.0,0.00011877,2]
[327071049,1715778645624,-193.2,0.00011877,2]
[327071050,1715778645633,-500.0,0.00011877,2]
[327071051,1715778645643,-516.52,0.00011877,2]
[327071052,1715778645653,-500.0,0.00011877,2]
[327071053,1715778645663,-244.32628564,0.00011877,2]
[327071054,1715778645673,-500.0,0.00011877,2]
[327071055,1715778645683,-500.0,0.00011877,2]
[327071056,1715778645693,-209.5,0.00011877,2]
[327071057,1715778645702,-278.18,0.00011877,2]
[327071058,1715778645712,-358.2472582,0.00011877,2]
[327071059,1715778645722,-213.84,0.00011877,2]
[327071060,1715778645732,-778.5,0.00011877,2]
[327071061,1715778645742,-500.0,0.00011877,2]
[327071062,1715778645751,-500.0,0.00011877,2]
[327071063,1715778645761,-843.19,0.00011877,2]
[327071064,1715778645771,-500.0,0.00011877,2]
[327071065,1715778645780,-151.0,0.00011877,2]
[327071066,1715778645790,-151.0,0.00011877,2]
[327071067,1715778645801,-151.0,0.00011877,2]
[327071068,1715778645810,-151.0,0.00011877,2]
[327071069,1715778645820,-154.171065,0.00011877,2]
[327071070,1715778645830,-151.0,0.00011877,2]
[327071071,1715778645839,-154.171065,0.00011877,2]
[327071072,1715778645849,-500.0,0.00011877,2]
[327071073,1715778645858,-500.0,0.00011877,2]
[327071074,1715778645868,-595.38437962,0.00011877,2]
[327071075,1715778645877,-500.0,0.00011877,2]
[327071076,1715778645888,-151.0,0.00011877,2]
[327071077,1715778645897,-151.0,0.00011877,2]
[327071078,1715778645909,-151.0,0.00011877,2]
[327071079,1715778645919,-500.0,0.00011877,2]
[327071080,1715778645930,-343.07,0.00011877,2]
[327071081,1715778645940,-500.0,0.00011877,2]
[327071082,1715778645950,-500.0,0.00011877,2]
[327071083,1715778645960,-500.0,0.00011877,2]
[327071084,1715778645970,-383.11918009,0.00011877,2]
[327071085,1715778645979,-282.937536,0.00011877,2]
[327071087,1715778645988,-500.0,0.00011877,2]
[327071088,1715778645997,-1242.65,0.00011877,2]
[327071090,1715778646007,-500.0,0.00011877,2]
[327071091,1715778646016,-286.496541,0.00011877,2]
[327071092,1715778646025,-1463.34,0.00011877,2]
[327071093,1715778646034,-286.496541,0.00011877,2]
[327071094,1715778646044,-151.0,0.00011877,2]
[327071095,1715778646053,-1046.26,0.00011877,2]
[327071096,1715778646063,-151.0,0.00011877,2]
[327071097,1715778646074,-500.0,0.00011877,2]
[327071098,1715778646083,-221.69,0.00011877,2]
[327071099,1715778646095,-297.063249,0.00011877,2]
[327071100,1715778646104,-151.0,0.00011877,2]
[327071101,1715778646113,-151.0,0.00011877,2]
[327071102,1715778646123,-500.0,0.00011877,2]
[327071103,1715778646132,-500.0,0.00011877,2]
[327071104,1715778646143,-500.0,0.00011877,2]
[327071105,1715778646153,-500.0,0.00011877,2]
[327071106,1715778646165,-500.0,0.00011877,2]
[327071107,1715778646177,-151.0,0.00011877,2]
[327071108,1715778646186,-673.01,0.00011877,2]
[327071111,1715778646195,-500.0,0.00011877,2]
[327071114,1715778646205,-500.0,0.00011877,2]
[327071117,1715778646215,-500.0,0.00011877,2]
[327071119,1715778646224,-500.0,0.00011877,2]
[327071122,1715778646234,-500.0,0.00011877,2]
[327071124,1715778646243,-330.24127505,0.00011877,2]
[327071125,1715778646253,-151.0,0.00011877,2]
[327071127,1715778646263,-500.0,0.00011877,2]
[327071129,1715778646273,-500.0,0.00011877,2]
[327071131,1715778646282,-500.0,0.00011877,2]
[327071133,1715778646291,-2315.79,0.00011877,2]
[327071135,1715778646300,-223.61,0.00011877,2]
[327071137,1715778646309,-500.0,0.00011877,2]
[327071139,1715778646319,-500.0,0.00011877,2]
[327071141,1715778646331,-500.0,0.00011877,2]
[327071143,1715778646342,-500.0,0.00011877,2]
[327071145,1715778646351,-873.88,0.00011877,2]
[327071147,1715778646361,-500.0,0.00011877,2]
[327071149,1715778646370,-500.0,0.00011877,2]
[327071151,1715778646379,-151.0,0.00011877,2]
[327071152,1715778646389,-500.0,0.00011877,2]
[327071154,1715778646398,-500.0,0.00011877,2]
[327071156,1715778646407,-500.0,0.00011877,2]
[327071158,1715778646416,-194.1,0.00011877,2]
[327071160,1715778646426,-500.0,0.00011877,2]
[327071162,1715778646439,-500.0,0.00011877,2]
[327071164,1715778646451,-606.18,0.00011877,2]
[327071166,1715778646460,-151.0,0.00011877,2]
[327071168,1715778646470,-500.0,0.00011877,2]
[327071170,1715778646480,-151.0,0.00011877,2]
[327071172,1715778646490,-620.72,0.00011877,2]
[327071174,1715778646499,-500.0,0.00011877,2]
[327071176,1715778646509,-151.0,0.00011877,2]
[327071178,1715778646519,-502.66,0.00011877,2]
[327071180,1715778646529,-500.0,0.00011877,2]
[327071182,1715778646538,-500.0,0.00011877,2]
[327071184,1715778646548,-151.0,0.00011877,2]
[327071186,1715778646557,-921.5,0.00011877,2]
[327071188,1715778646567,-561.48,0.00011877,2]
[327071190,1715778646576,-500.0,0.00011877,2]
[327071192,1715778646585,-500.0,0.00011877,2]
[327071194,1715778646596,-273.8847103,0.00011877,2]
[327071196,1715778646606,-549.97,0.00011877,2]
[327071198,1715778646615,-500.0,0.00011877,2]
[327071200,1715778646624,-500.0,0.00011877,2]
[327071202,1715778646634,-151.0,0.00011877,2]
[327071204,1715778646643,-500.0,0.00011877,2]
[327071205,1715778646652,-239.1240241,0.00011877,2]
[327071206,1715778646662,-500.0,0.00011877,2]
[327071207,1715778646671,-500.0,0.00011877,2]
[327071208,1715778646681,-500.0,0.00011877,2]
[327071209,1715778646690,-1839.7,0.00011877,2]
[327071210,1715778646699,-500.0,0.00011877,2]
[327071212,1715778646709,-831.17,0.00011877,2]
[327071214,1715778646719,-1192.95,0.00011877,2]
[327071216,1715778646728,-500.0,0.00011877,2]
[327071218,1715778646738,-500.0,0.00011877,2]
[327071220,1715778646747,-727.35,0.00011877,2]
[327071222,1715778646756,-476.011655,0.00011877,2]
[327071224,1715778646765,-500.0,0.00011877,2]
[327071226,1715778646775,-476.011655,0.00011877,2]
[327071228,1715778646784,-1558.13,0.00011877,2]
[327071230,1715778646793,-500.0,0.00011877,2]
[327071232,1715778646804,-151.0,0.00011877,2]
[327071234,1715778646814,-178.03842842,0.00011877,2]
[327071236,1715778646823,-500.0,0.00011877,2]
[327071237,1715778646977,-500.0,0.00011877,2]
[327071238,1715778646988,-500.0,0.00011877,2]
[327071239,1715778646998,-500.0,0.00011877,2]
[327071240,1715778647007,-151.0,0.00011877,2]
[327071241,1715778647016,-151.0,0.00011877,2]
[327071242,1715778647027,-1001.98,0.00011877,2]
[327071243,1715778647036,-249.02,0.00011877,2]
[327071244,1715778647045,-500.0,0.00011877,2]
[327071245,1715778647055,-151.0,0.00011877,2]
[327071246,1715778647063,-151.0,0.00011877,2]
[327071247,1715778647072,-500.0,0.00011877,2]
[327071248,1715778647082,-707.84680816,0.00011878,2]
[327071249,1715778647093,-177.54622384,0.00011878,2]
[327071250,1715778647103,-1249.60316974,0.00011878,2]